[Event "*** Titled Tuesday Blitz"]
[Site "Chess.com"]
[Date "2020.04.14"]
[Round "7"]
[White "LizaSolovyova"]
[Black "DejanNestor64"]
[Result "0-1"]
[WhiteElo "2573"]
[BlackElo "2443"]
[TimeControl "180+1"]
[EndTime "11:15:07 PDT"]
[Termination "DejanNestor64 won by resignation"]

1. d4 {[%clk 0:03:00.7]} 1... Nf6 {[%clk 0:02:58.8]} 2. Nc3 {[%clk 0:03:00.7]}
2... d5 {[%clk 0:02:56.3]} 3. e4 {[%clk 0:03:00.9]} 3... dxe4 {[%clk 0:02:55.2]}
4. f3 {[%clk 0:03:00.9]} 4... exf3 {[%clk 0:02:54.5]} 5. Qxf3 {[%clk 0:03:01.8]}
5... g6 {[%clk 0:02:53.4]} 6. Bg5 {[%clk 0:03:00.5]} 6... Bg7 {[%clk 0:02:53.2]}
7. h3 {[%clk 0:02:49.7]} 7... Qxd4 {[%clk 0:02:26.1]} 8. Nge2 {[%clk 0:02:48]}
8... Qd8 {[%clk 0:02:11.2]} 9. Bd2 {[%clk 0:02:32.2]} 9... O-O {[%clk
0:02:07.5]} 10. O-O-O {[%clk 0:02:32.1]} 10... Nbd7 {[%clk 0:02:04.4]} 11. g4
{[%clk 0:02:22.5]} 11... c6 {[%clk 0:02:02.7]} 12. Bf4 {[%clk 0:02:20.4]} 12...
Qa5 {[%clk 0:02:00.5]} 13. Kb1 {[%clk 0:02:19.6]} 13... Nb6 {[%clk 0:01:54.1]}
14. Nd4 {[%clk 0:02:18.4]} 14... Nfd5 {[%clk 0:01:46.7]} 15. Nxd5 {[%clk
0:02:09.1]} 15... Nxd5 {[%clk 0:01:30.7]} 16. Nb3 {[%clk 0:02:02.5]} 16... Qb6
{[%clk 0:01:23.1]} 17. Bc1 {[%clk 0:01:58.6]} 17... a5 {[%clk 0:01:22.1]} 18.
Bc4 {[%clk 0:01:30.4]} 18... Be6 {[%clk 0:01:20.2]} 19. Rhe1 {[%clk 0:01:09.4]}
19... Nc3+ {[%clk 0:01:16.1]} 20. bxc3 {[%clk 0:01:07.3]} 20... Bxc4 {[%clk
0:01:16.1]} 21. Be3 {[%clk 0:01:01]} 21... Qb5 {[%clk 0:01:08.7]} 22. Kc1 {[%clk
0:00:44.2]} 22... Bd5 {[%clk 0:00:50.9]} 23. Qg3 {[%clk 0:00:33.9]} 23... a4
{[%clk 0:00:40.1]} 24. Nd4 {[%clk 0:00:30.1]} 24... Qc4 {[%clk 0:00:39.7]} 25.
Bg5 {[%clk 0:00:25.1]} 25... e5 {[%clk 0:00:31.3]} 26. Rxe5 {[%clk 0:00:16.4]}
26... f6 {[%clk 0:00:19.9]} 27. Rxd5 {[%clk 0:00:16.3]} 27... Qxd5 {[%clk
0:00:19]} 28. Be3 {[%clk 0:00:13.3]} 28... Qxa2 {[%clk 0:00:18.5]} 29. Qc7
{[%clk 0:00:11.5]} 29... Rf7 {[%clk 0:00:17]} 30. Qd6 {[%clk 0:00:11.4]} 30...
Qd5 {[%clk 0:00:15.4]} 31. Qb4 {[%clk 0:00:11.2]} 31... Qe4 {[%clk 0:00:13.7]}
32. Kd2 {[%clk 0:00:08]} 32... Re8 {[%clk 0:00:13.1]} 33. Re1 {[%clk 0:00:07]}
33... Qg2+ {[%clk 0:00:12.2]} 34. Re2 {[%clk 0:00:06.9]} 34... Qxh3 {[%clk
0:00:12.2]} 35. Qxa4 {[%clk 0:00:06.8]} 35... Qxg4 {[%clk 0:00:11.7]} 36. Rf2
{[%clk 0:00:02.5]} 36... Qd7 {[%clk 0:00:11.3]} 37. Qb4 {[%clk 0:00:02.4]} 37...
Qc7 {[%clk 0:00:10.3]} 38. Qb3 {[%clk 0:00:02.9]} 38... c5 {[%clk 0:00:09.6]}
39. Ne6 {[%clk 0:00:03.3]} 39... Qd7+ {[%clk 0:00:08.6]} 40. Nd4 {[%clk
0:00:03.5]} 40... cxd4 {[%clk 0:00:08]} 41. cxd4 {[%clk 0:00:04.4]} 41... f5
{[%clk 0:00:07.7]} 42. Bf4 {[%clk 0:00:04.4]} 42... Qxd4+ {[%clk 0:00:06.7]} 43.
Kc1 {[%clk 0:00:05]} 43... Qxf2 {[%clk 0:00:06.5]} 44. Qb5 {[%clk 0:00:05.5]}
44... Qxf4+ {[%clk 0:00:06]} 45. Kb1 {[%clk 0:00:05.6]} 45... Qe5 {[%clk
0:00:06.3]} 46. Qb3 {[%clk 0:00:05]} 46... Qb2+ {[%clk 0:00:06]} 47. Qxb2 {[%clk
0:00:05.1]} 47... Bxb2 {[%clk 0:00:06.5]} 48. Kxb2 {[%clk 0:00:06]} 48... f4
{[%clk 0:00:07]} 0-1

[Event "*** Titled Tuesday Blitz"]
[Site "Chess.com"]
[Date "2020.04.14"]
[Round "7"]
[White "asimali1977"]
[Black "Torrentec"]
[Result "0-1"]
[WhiteElo "1990"]
[BlackElo "2306"]
[TimeControl "180+1"]
[EndTime "11:15:07 PDT"]
[Termination "Torrentec won by checkmate"]

1. Nf3 {[%clk 0:02:59.5]} 1... d5 {[%clk 0:02:59.7]} 2. g3 {[%clk 0:02:58.6]}
2... Nf6 {[%clk 0:02:59.8]} 3. Bg2 {[%clk 0:02:58.4]} 3... c6 {[%clk 0:03:00.4]}
4. O-O {[%clk 0:02:58.2]} 4... h6 {[%clk 0:03:01]} 5. d3 {[%clk 0:02:58.1]} 5...
Bg4 {[%clk 0:03:01]} 6. Nbd2 {[%clk 0:02:56.3]} 6... Nbd7 {[%clk 0:03:01.1]} 7.
e4 {[%clk 0:02:53.8]} 7... dxe4 {[%clk 0:03:01]} 8. dxe4 {[%clk 0:02:53.4]} 8...
e5 {[%clk 0:03:01.5]} 9. h3 {[%clk 0:02:51.2]} 9... Bh5 {[%clk 0:03:01.2]} 10.
c3 {[%clk 0:02:44.7]} 10... Qc7 {[%clk 0:03:00.4]} 11. Qc2 {[%clk 0:02:40.4]}
11... Bc5 {[%clk 0:02:58]} 12. b4 {[%clk 0:02:35.3]} 12... Bb6 {[%clk
0:02:56.5]} 13. Bb2 {[%clk 0:02:32.8]} 13... O-O {[%clk 0:02:54.5]} 14. a3
{[%clk 0:02:32.3]} 14... Rfe8 {[%clk 0:02:47.8]} 15. Rad1 {[%clk 0:02:30.3]}
15... a5 {[%clk 0:02:44.5]} 16. Nc4 {[%clk 0:02:29.5]} 16... axb4 {[%clk
0:02:43.9]} 17. cxb4 {[%clk 0:02:24.8]} 17... Ba7 {[%clk 0:02:41]} 18. Nd6
{[%clk 0:02:15.3]} 18... Re6 {[%clk 0:02:35.7]} 19. Nf5 {[%clk 0:02:10.4]} 19...
Bg6 {[%clk 0:02:35.6]} 20. N3h4 {[%clk 0:02:07.4]} 20... Rae8 {[%clk 0:02:26.4]}
21. Nxg6 {[%clk 0:02:03.1]} 21... fxg6 {[%clk 0:02:25.9]} 22. Nh4 {[%clk
0:02:02.5]} 22... Kh7 {[%clk 0:02:24.4]} 23. Rd2 {[%clk 0:01:51.6]} 23... Rf8
{[%clk 0:02:21.2]} 24. Rfd1 {[%clk 0:01:50.5]} 24... Rf7 {[%clk 0:02:21.6]} 25.
Qb3 {[%clk 0:01:48.2]} 25... Ree7 {[%clk 0:02:18.4]} 26. Bf3 {[%clk 0:01:43.7]}
26... Nh5 {[%clk 0:02:15.8]} 27. Bxh5 {[%clk 0:01:40.7]} 27... gxh5 {[%clk
0:02:16.7]} 28. Nf5 {[%clk 0:01:40.6]} 28... Nf6 {[%clk 0:01:57.1]} 29. Nxe7
{[%clk 0:01:34.9]} 29... Qxe7 {[%clk 0:01:58]} 30. Qc4 {[%clk 0:01:17.1]} 30...
h4 {[%clk 0:01:54.5]} 31. Kg2 {[%clk 0:01:14.4]} 31... hxg3 {[%clk 0:01:53.3]}
32. fxg3 {[%clk 0:01:14.2]} 32... Nh5 {[%clk 0:01:53.3]} 33. Rf1 {[%clk
0:01:09.7]} 33... Rxf1 {[%clk 0:01:49.7]} 34. Qxf1 {[%clk 0:01:09]} 34... Qg5
{[%clk 0:01:49.4]} 35. Qf5+ {[%clk 0:01:08.2]} 35... Qxf5 {[%clk 0:01:45.8]} 36.
exf5 {[%clk 0:01:08]} 36... e4 {[%clk 0:01:46.7]} 37. Re2 {[%clk 0:01:03.2]}
37... e3 {[%clk 0:01:42.5]} 38. Kf3 {[%clk 0:01:01.8]} 38... g5 {[%clk
0:01:40.2]} 39. fxg6+ {[%clk 0:01:01.2]} 39... Kxg6 {[%clk 0:01:40.1]} 40. Bc1
{[%clk 0:01:01.5]} 40... Nf6 {[%clk 0:01:37.6]} 41. Bxe3 {[%clk 0:01:01]} 41...
Bb8 {[%clk 0:01:37.5]} 42. Bf4 {[%clk 0:01:00.7]} 42... Ba7 {[%clk 0:01:37.4]}
43. Re6 {[%clk 0:01:00.2]} 43... Kf5 {[%clk 0:01:37.7]} 44. Rd6 {[%clk
0:00:58.6]} 44... h5 {[%clk 0:01:37.9]} 45. g4+ {[%clk 0:00:58.1]} 45... hxg4+
{[%clk 0:01:38.8]} 46. hxg4+ {[%clk 0:00:58.2]} 46... Nxg4 {[%clk 0:01:39.1]}
47. Rd7 {[%clk 0:00:56.5]} 47... Be3 {[%clk 0:01:24]} 48. Bxe3 {[%clk
0:00:55.6]} 48... Ne5+ {[%clk 0:01:23.6]} 49. Ke2 {[%clk 0:00:55.4]} 49... Nxd7
{[%clk 0:01:24.5]} 50. Kd3 {[%clk 0:00:55.6]} 50... Ke5 {[%clk 0:01:22.6]} 51.
Kc4 {[%clk 0:00:55]} 51... b5+ {[%clk 0:01:15.3]} 52. Kc3 {[%clk 0:00:54]} 52...
Kd5 {[%clk 0:01:13.4]} 53. Bg1 {[%clk 0:00:54]} 53... Ne5 {[%clk 0:01:11.4]} 54.
Bh2 {[%clk 0:00:52.3]} 54... Nc4 {[%clk 0:01:11.7]} 55. Kb3 {[%clk 0:00:52]}
55... Nd2+ {[%clk 0:01:10.3]} 56. Ka2 {[%clk 0:00:49.3]} 56... Ne4 {[%clk
0:01:11.2]} 57. Be5 {[%clk 0:00:36]} 57... Kc4 {[%clk 0:01:11.2]} 58. Bg7 {[%clk
0:00:32.1]} 58... Nc3+ {[%clk 0:01:07.3]} 59. Kb2 {[%clk 0:00:31.2]} 59... Nd1+
{[%clk 0:01:05]} 60. Kc2 {[%clk 0:00:30.6]} 60... Ne3+ {[%clk 0:01:04.5]} 61.
Kb2 {[%clk 0:00:30.3]} 61... Nd5 {[%clk 0:01:05.4]} 62. Bf8 {[%clk 0:00:29.3]}
62... Nb6 {[%clk 0:01:04.3]} 63. Bc5 {[%clk 0:00:28.2]} 63... Na4+ {[%clk
0:01:04.4]} 64. Kc2 {[%clk 0:00:27.6]} 64... Nxc5 {[%clk 0:01:05.3]} 65. bxc5
{[%clk 0:00:27.3]} 65... Kxc5 {[%clk 0:01:06.2]} 66. Kb3 {[%clk 0:00:27.1]}
66... Kd4 {[%clk 0:00:59.1]} 67. Kb4 {[%clk 0:00:26.4]} 67... c5+ {[%clk
0:00:59.3]} 68. Kxb5 {[%clk 0:00:26.1]} 68... c4 {[%clk 0:01:00.2]} 69. a4
{[%clk 0:00:26.1]} 69... c3 {[%clk 0:01:01.1]} 70. a5 {[%clk 0:00:26.1]} 70...
c2 {[%clk 0:01:02]} 71. a6 {[%clk 0:00:26]} 71... c1=Q {[%clk 0:01:02.5]} 72. a7
{[%clk 0:00:24.7]} 72... Qh1 {[%clk 0:00:55.9]} 73. Kb6 {[%clk 0:00:23.8]} 73...
Qa8 {[%clk 0:00:55.5]} 74. Ka6 {[%clk 0:00:23.6]} 74... Kc5 {[%clk 0:00:53.5]}
75. Ka5 {[%clk 0:00:23.1]} 75... Qxa7# {[%clk 0:00:53.9]} 0-1

[Event "*** Titled Tuesday Blitz"]
[Site "Chess.com"]
[Date "2020.04.14"]
[Round "7"]
[White "isla88"]
[Black "Lion-Al-Messi"]
[Result "1-0"]
[WhiteElo "2309"]
[BlackElo "2463"]
[TimeControl "180+1"]
[EndTime "11:15:08 PDT"]
[Termination "isla88 won by resignation"]

1. c4 {[%clk 0:03:00.9]} 1... b6 {[%clk 0:02:16.9]} 2. Nc3 {[%clk 0:02:58.8]}
2... Bb7 {[%clk 0:01:48.7]} 3. e4 {[%clk 0:02:55.7]} 3... e5 {[%clk 0:01:46.3]}
4. Nf3 {[%clk 0:02:51.2]} 4... Nc6 {[%clk 0:01:43.2]} 5. d4 {[%clk 0:02:51]}
5... exd4 {[%clk 0:01:41.2]} 6. Nxd4 {[%clk 0:02:49.1]} 6... Bc5 {[%clk
0:01:38.4]} 7. Be3 {[%clk 0:02:41.9]} 7... Qh4 {[%clk 0:01:21.7]} 8. g3 {[%clk
0:02:32.5]} 8... Qe7 {[%clk 0:01:17]} 9. Nf5 {[%clk 0:02:19]} 9... Qf8 {[%clk
0:01:08.3]} 10. Nd5 {[%clk 0:02:09.7]} 10... O-O-O {[%clk 0:01:06.3]} 11. Bg2
{[%clk 0:02:00.3]} 11... Bb4+ {[%clk 0:01:05.8]} 12. Nxb4 {[%clk 0:01:52.1]}
12... Qxb4+ {[%clk 0:01:06.7]} 13. Qd2 {[%clk 0:01:50.4]} 13... g6 {[%clk
0:01:04.7]} 14. Nd4 {[%clk 0:01:24.5]} 14... Nge7 {[%clk 0:00:58.3]} 15. Qxb4
{[%clk 0:01:08.8]} 15... Nxb4 {[%clk 0:00:59.2]} 16. Kd2 {[%clk 0:01:05.2]}
16... f5 {[%clk 0:00:56.4]} 17. a3 {[%clk 0:00:58.7]} 17... Nbc6 {[%clk
0:00:54.4]} 18. exf5 {[%clk 0:00:55.4]} 18... gxf5 {[%clk 0:00:47.2]} 19. Nxc6
{[%clk 0:00:46.8]} 19... dxc6+ {[%clk 0:00:48.1]} 20. Kc3 {[%clk 0:00:44.2]}
20... c5 {[%clk 0:00:40]} 21. Bxb7+ {[%clk 0:00:42.7]} 21... Kxb7 {[%clk
0:00:40.9]} 22. Bg5 {[%clk 0:00:42.8]} 22... Rd7 {[%clk 0:00:38.7]} 23. Rad1
{[%clk 0:00:39.1]} 23... Rhd8 {[%clk 0:00:33.6]} 24. Rxd7 {[%clk 0:00:27.6]}
24... Rxd7 {[%clk 0:00:34.5]} 25. Re1 {[%clk 0:00:27.6]} 25... Nc6 {[%clk
0:00:31.8]} 26. Bf4 {[%clk 0:00:24.1]} 26... Nd4 {[%clk 0:00:28.8]} 27. Re8
{[%clk 0:00:22.6]} 27... a5 {[%clk 0:00:24.8]} 28. b4 {[%clk 0:00:19.3]} 28...
cxb4+ {[%clk 0:00:22.4]} 29. axb4 {[%clk 0:00:20.2]} 29... a4 {[%clk 0:00:22.8]}
30. c5 {[%clk 0:00:17.5]} 30... Ne2+ {[%clk 0:00:21.1]} 31. Rxe2 {[%clk
0:00:16.6]} 31... b5 {[%clk 0:00:18.7]} 32. Rd2 {[%clk 0:00:15.7]} 32... Re7
{[%clk 0:00:15.9]} 33. Be3 {[%clk 0:00:14.9]} 33... Kc6 {[%clk 0:00:15.6]} 34.
Kb2 {[%clk 0:00:14.1]} 34... Re4 {[%clk 0:00:15.1]} 35. Rd4 {[%clk 0:00:13.5]}
35... Re6 {[%clk 0:00:14.9]} 36. Rf4 {[%clk 0:00:13.2]} 36... Re5 {[%clk
0:00:14.6]} 37. g4 {[%clk 0:00:11.2]} 37... fxg4 {[%clk 0:00:13.9]} 38. Rxg4
{[%clk 0:00:12.1]} 38... Rh5 {[%clk 0:00:12.8]} 39. h4 {[%clk 0:00:11.6]} 39...
Rf5 {[%clk 0:00:10.3]} 40. Rf4 {[%clk 0:00:11.4]} 40... Re5 {[%clk 0:00:09.5]}
41. Rf6+ {[%clk 0:00:08.7]} 41... Kd5 {[%clk 0:00:09.3]} 42. Rf7 {[%clk
0:00:07.4]} 42... c6 {[%clk 0:00:08.2]} 43. Rf6 {[%clk 0:00:06.7]} 43... Kc4
{[%clk 0:00:08]} 44. Rf4+ {[%clk 0:00:05.9]} 44... Kd5 {[%clk 0:00:04.3]} 45.
Rd4+ {[%clk 0:00:05.8]} 45... Ke6 {[%clk 0:00:04.2]} 46. Rd6+ {[%clk 0:00:06.3]}
46... Kf5 {[%clk 0:00:04]} 47. Rxc6 {[%clk 0:00:06.8]} 47... Re4 {[%clk
0:00:04.3]} 48. Rb6 {[%clk 0:00:05.1]} 48... Rxb4+ {[%clk 0:00:03.9]} 49. Ka3
{[%clk 0:00:05.2]} 49... Rb3+ {[%clk 0:00:04]} 50. Ka2 {[%clk 0:00:05.5]} 50...
Ke5 {[%clk 0:00:03.3]} 51. c6 {[%clk 0:00:05.5]} 51... Kd6 {[%clk 0:00:03.7]}
52. Bf4+ {[%clk 0:00:05.5]} 52... Ke7 {[%clk 0:00:02.8]} 53. c7 {[%clk
0:00:05.4]} 53... Kd7 {[%clk 0:00:02.7]} 54. Rb8 {[%clk 0:00:05]} 54... Rc3
{[%clk 0:00:02.6]} 55. Rd8+ {[%clk 0:00:04.6]} 1-0

[Event "*** Titled Tuesday Blitz"]
[Site "Chess.com"]
[Date "2020.04.14"]
[Round "7"]
[White "Perecke"]
[Black "BabyBoss31"]
[Result "0-1"]
[WhiteElo "2200"]
[BlackElo "2351"]
[TimeControl "180+1"]
[EndTime "11:15:08 PDT"]
[Termination "BabyBoss31 won on time"]

1. e4 {[%clk 0:02:58.4]} 1... e6 {[%clk 0:03:00]} 2. d4 {[%clk 0:02:51.8]} 2...
d5 {[%clk 0:02:59]} 3. Nc3 {[%clk 0:02:51.3]} 3... Nf6 {[%clk 0:02:59.1]} 4. e5
{[%clk 0:02:51.3]} 4... Nfd7 {[%clk 0:02:59]} 5. Nce2 {[%clk 0:02:51.6]} 5... c5
{[%clk 0:02:56.2]} 6. c3 {[%clk 0:02:51.8]} 6... Nc6 {[%clk 0:02:54.8]} 7. f4
{[%clk 0:02:49.7]} 7... Qb6 {[%clk 0:02:52.5]} 8. Nf3 {[%clk 0:02:49.2]} 8... f6
{[%clk 0:02:51.4]} 9. g3 {[%clk 0:02:47.7]} 9... cxd4 {[%clk 0:02:49.4]} 10.
Nexd4 {[%clk 0:02:38]} 10... fxe5 {[%clk 0:02:21.1]} 11. fxe5 {[%clk 0:02:37.7]}
11... Nc5 {[%clk 0:02:09.1]} 12. Bh3 {[%clk 0:02:26.4]} 12... Be7 {[%clk
0:02:07.2]} 13. O-O {[%clk 0:02:25.7]} 13... O-O {[%clk 0:02:06.8]} 14. Bg5
{[%clk 0:02:06.4]} 14... Bd7 {[%clk 0:02:01.6]} 15. Bxe7 {[%clk 0:01:33.7]}
15... Nxe7 {[%clk 0:02:02.5]} 16. Qc2 {[%clk 0:01:22.4]} 16... Ne4 {[%clk
0:01:53.6]} 17. Kg2 {[%clk 0:01:12.5]} 17... Rac8 {[%clk 0:01:46.9]} 18. Rac1
{[%clk 0:00:35.9]} 18... Qa6 {[%clk 0:01:41.4]} 19. Nd2 {[%clk 0:00:31.1]} 19...
Ng5 {[%clk 0:01:27.4]} 20. Bg4 {[%clk 0:00:27.9]} 20... Nc6 {[%clk 0:01:24.9]}
21. Rxf8+ {[%clk 0:00:17.3]} 21... Rxf8 {[%clk 0:01:22.8]} 22. Re1 {[%clk
0:00:09.1]} 22... Nxd4 {[%clk 0:01:08.2]} 23. cxd4 {[%clk 0:00:10]} 23... Rc8
{[%clk 0:01:08.4]} 24. Qb3 {[%clk 0:00:07.5]} 24... Qb6 {[%clk 0:01:03.1]} 25.
Qxb6 {[%clk 0:00:06.6]} 25... axb6 {[%clk 0:01:04]} 26. h4 {[%clk 0:00:03.2]}
26... Rc2 {[%clk 0:01:01.9]} 27. Re2 {[%clk 0:00:03.6]} 27... Nf7 {[%clk
0:00:59.9]} 28. Nb3 {[%clk 0:00:02.9]} 28... Rc8 {[%clk 0:00:57.1]} 29. Rd2
{[%clk 0:00:02.4]} 29... Ra8 {[%clk 0:00:55.8]} 30. a3 {[%clk 0:00:02.2]} 30...
Ba4 {[%clk 0:00:55.8]} 31. Na1 {[%clk 0:00:02]} 31... Bd7 {[%clk 0:00:54.7]} 32.
Rc2 {[%clk 0:00:01.6]} 32... Nd8 {[%clk 0:00:49.5]} 33. Nb3 {[%clk 0:00:01.8]}
33... Bc6 {[%clk 0:00:46.3]} 34. Rc3 {[%clk 0:00:01.5]} 34... Kf7 {[%clk
0:00:46.2]} 35. Nd2 {[%clk 0:00:01.3]} 35... Ke7 {[%clk 0:00:46.6]} 36. Nf3
{[%clk 0:00:01.4]} 36... g6 {[%clk 0:00:46.2]} 37. Kf2 {[%clk 0:00:01.8]} 37...
h5 {[%clk 0:00:46]} 38. Ke3 {[%clk 0:00:02.2]} 38... hxg4 {[%clk 0:00:46]} 39.
Ng5 {[%clk 0:00:02.6]} 39... Nf7 {[%clk 0:00:46.4]} 40. Kf4 {[%clk 0:00:02.5]}
40... Nxg5 {[%clk 0:00:46.4]} 41. Kxg5 {[%clk 0:00:02.8]} 41... Rf8 {[%clk
0:00:45.2]} 42. Kxg6 {[%clk 0:00:02.8]} 42... Rf3 {[%clk 0:00:44.6]} 43. h5
{[%clk 0:00:01.7]} 43... Rf2 {[%clk 0:00:43]} 44. h6 {[%clk 0:00:01.7]} 44...
Kf8 {[%clk 0:00:38.4]} 45. h7 {[%clk 0:00:02]} 45... Rh2 {[%clk 0:00:38.4]} 46.
Rc1 {[%clk 0:00:02.1]} 46... Be8+ {[%clk 0:00:38.1]} 47. Kg5 {[%clk 0:00:02.3]}
47... Rxh7 {[%clk 0:00:37.7]} 48. Kf6 {[%clk 0:00:02.1]} 48... Rh6+ {[%clk
0:00:37]} 49. Kg5 {[%clk 0:00:02.4]} 49... Rg6+ {[%clk 0:00:37.7]} 50. Kh5
{[%clk 0:00:02.4]} 50... Rg7+ {[%clk 0:00:37.3]} 51. Kh6 {[%clk 0:00:02.5]}
51... Rg6+ {[%clk 0:00:37.1]} 52. Kh5 {[%clk 0:00:02.3]} 52... Rg8+ {[%clk
0:00:37.6]} 53. Kh4 {[%clk 0:00:02.1]} 53... Bc6 {[%clk 0:00:38.4]} 54. Kh5
{[%clk 0:00:01.6]} 54... Ke7 {[%clk 0:00:38.9]} 55. Rf1 {[%clk 0:00:01.9]} 55...
Rf8 {[%clk 0:00:38.9]} 56. Rxf8 {[%clk 0:00:01.9]} 56... Kxf8 {[%clk 0:00:39.5]}
57. Kxg4 {[%clk 0:00:02.8]} 57... Kg7 {[%clk 0:00:40.2]} 58. Kg5 {[%clk
0:00:03.3]} 58... Ba4 {[%clk 0:00:39.3]} 59. g4 {[%clk 0:00:04.2]} 59... Bc2
{[%clk 0:00:39.3]} 60. Kf4 {[%clk 0:00:04.4]} 60... Kg6 {[%clk 0:00:39.6]} 61.
Ke3 {[%clk 0:00:04.7]} 61... b5 {[%clk 0:00:40]} 62. Ke2 {[%clk 0:00:05.4]}
62... Kg5 {[%clk 0:00:40]} 63. Kd2 {[%clk 0:00:06.3]} 63... Bb3 {[%clk
0:00:39.7]} 64. Kc3 {[%clk 0:00:06.8]} 64... Bc4 {[%clk 0:00:40.3]} 65. Kb4
{[%clk 0:00:07.2]} 65... Kxg4 {[%clk 0:00:40.7]} 66. Kc5 {[%clk 0:00:07.1]}
66... Kf5 {[%clk 0:00:39.9]} 67. Kd6 {[%clk 0:00:06.3]} 67... Ke4 {[%clk
0:00:40.2]} 68. Kxe6 {[%clk 0:00:05.1]} 68... Kxd4 {[%clk 0:00:40.8]} 69. Kd6
{[%clk 0:00:05]} 69... Ke4 {[%clk 0:00:37.8]} 70. e6 {[%clk 0:00:05]} 70... d4
{[%clk 0:00:38.5]} 71. e7 {[%clk 0:00:03.5]} 71... Bf7 {[%clk 0:00:39.1]} 0-1

[Event "*** Titled Tuesday Blitz"]
[Site "Chess.com"]
[Date "2020.04.14"]
[Round "7"]
[White "Firegrizzly"]
[Black "BasilSmash"]
[Result "1-0"]
[WhiteElo "2594"]
[BlackElo "2398"]
[TimeControl "180+1"]
[EndTime "11:15:10 PDT"]
[Termination "Firegrizzly won on time"]

1. e4 {[%clk 0:03:00.9]} 1... c6 {[%clk 0:02:57.9]} 2. d4 {[%clk 0:02:59.3]}
2... d5 {[%clk 0:02:58.8]} 3. e5 {[%clk 0:02:59.9]} 3... Bf5 {[%clk 0:02:57.2]}
4. c4 {[%clk 0:03:00.2]} 4... e6 {[%clk 0:02:57]} 5. Nc3 {[%clk 0:03:00]} 5...
Ne7 {[%clk 0:02:56.6]} 6. a3 {[%clk 0:03:00.1]} 6... Nd7 {[%clk 0:02:52.9]} 7.
h4 {[%clk 0:02:58]} 7... h6 {[%clk 0:02:47.6]} 8. h5 {[%clk 0:02:55.5]} 8... Qb6
{[%clk 0:02:43.8]} 9. c5 {[%clk 0:02:54.6]} 9... Qc7 {[%clk 0:02:43.9]} 10. b4
{[%clk 0:02:54.2]} 10... f6 {[%clk 0:02:43.1]} 11. f4 {[%clk 0:02:52.1]} 11...
fxe5 {[%clk 0:02:38.2]} 12. fxe5 {[%clk 0:02:52]} 12... a5 {[%clk 0:02:30.3]}
13. Bf4 {[%clk 0:02:46.5]} 13... g5 {[%clk 0:02:25.6]} 14. Bh2 {[%clk
0:02:44.2]} 14... Bg7 {[%clk 0:02:16.9]} 15. Be2 {[%clk 0:02:38.1]} 15... O-O
{[%clk 0:02:15.1]} 16. Nf3 {[%clk 0:02:34.2]} 16... b5 {[%clk 0:02:06]} 17. O-O
{[%clk 0:02:23.4]} 17... Qb7 {[%clk 0:02:03]} 18. Qd2 {[%clk 0:02:18]} 18...
axb4 {[%clk 0:02:01.6]} 19. axb4 {[%clk 0:02:16.9]} 19... Rxa1 {[%clk
0:02:01.2]} 20. Rxa1 {[%clk 0:02:17.4]} 20... Ra8 {[%clk 0:02:01]} 21. Qb2
{[%clk 0:02:16.5]} 21... Nb8 {[%clk 0:01:54.5]} 22. Bg3 {[%clk 0:02:04.8]} 22...
Rxa1+ {[%clk 0:01:51.1]} 23. Qxa1 {[%clk 0:02:04.6]} 23... Qa6 {[%clk
0:01:51.2]} 24. Qb2 {[%clk 0:02:04.7]} 24... Nd7 {[%clk 0:01:44.4]} 25. Nh2
{[%clk 0:02:01.8]} 25... Nf8 {[%clk 0:01:24.4]} 26. Bf2 {[%clk 0:02:00.9]} 26...
Nd7 {[%clk 0:01:23.9]} 27. Be3 {[%clk 0:02:00.1]} 27... Kh8 {[%clk 0:01:22.4]}
28. g4 {[%clk 0:01:56.2]} 28... Bh7 {[%clk 0:01:21.7]} 29. Kf2 {[%clk
0:01:55.7]} 29... Kg8 {[%clk 0:01:21.4]} 30. Nf1 {[%clk 0:01:54.7]} 30... Bf8
{[%clk 0:01:19]} 31. Nd2 {[%clk 0:01:54.2]} 31... Nc8 {[%clk 0:01:18.9]} 32. Nb3
{[%clk 0:01:52.7]} 32... Be7 {[%clk 0:01:18.3]} 33. Na5 {[%clk 0:01:51.6]} 33...
Bd8 {[%clk 0:01:17.1]} 34. Nxc6 {[%clk 0:01:50]} 34... Qxc6 {[%clk 0:01:18]} 35.
Bxb5 {[%clk 0:01:49.7]} 35... Qc7 {[%clk 0:01:15.5]} 36. Qa3 {[%clk 0:01:48.6]}
36... Nxe5 {[%clk 0:01:12.1]} 37. dxe5 {[%clk 0:01:47.9]} 37... Qxe5 {[%clk
0:01:13]} 38. Ne2 {[%clk 0:01:43.6]} 38... Qh2+ {[%clk 0:00:53.2]} 39. Ke1
{[%clk 0:01:43]} 39... Qb8 {[%clk 0:00:47.4]} 40. Bd7 {[%clk 0:01:41.5]} 40...
e5 {[%clk 0:00:45.1]} 41. Be6+ {[%clk 0:01:39.3]} 41... Kh8 {[%clk 0:00:43.9]}
42. Bxd5 {[%clk 0:01:40.2]} 42... Ne7 {[%clk 0:00:43.4]} 43. Bc4 {[%clk
0:01:32.7]} 43... Qc8 {[%clk 0:00:40.7]} 44. Qc3 {[%clk 0:01:30.1]} 44... Bc7
{[%clk 0:00:35.9]} 45. b5 {[%clk 0:01:29.3]} 45... Qxg4 {[%clk 0:00:35.4]} 46.
b6 {[%clk 0:01:29]} 46... Bb8 {[%clk 0:00:35.5]} 47. Bd2 {[%clk 0:01:19.7]}
47... Qxh5 {[%clk 0:00:29.5]} 48. Be6 {[%clk 0:01:17.3]} 48... Qh1+ {[%clk
0:00:27.4]} 49. Kf2 {[%clk 0:01:17.4]} 49... Qh2+ {[%clk 0:00:22.9]} 50. Kf1
{[%clk 0:01:16.1]} 50... Be4 {[%clk 0:00:18.4]} 51. Qg3 {[%clk 0:01:12.2]} 51...
Qh1+ {[%clk 0:00:15.8]} 52. Ng1 {[%clk 0:01:10]} 52... Ng6 {[%clk 0:00:14]} 53.
Bc3 {[%clk 0:01:05.5]} 53... Nf4 {[%clk 0:00:13.2]} 54. Bc4 {[%clk 0:00:55.1]}
54... Kh7 {[%clk 0:00:11.1]} 55. Bd2 {[%clk 0:00:51.3]} 55... Bg2+ {[%clk
0:00:09.6]} 56. Kf2 {[%clk 0:00:50.5]} 56... Bc6 {[%clk 0:00:09.2]} 57. Bxf4
{[%clk 0:00:42.3]} 57... exf4 {[%clk 0:00:10.1]} 58. Qh3 {[%clk 0:00:42.9]}
58... Qe4 {[%clk 0:00:07]} 59. Bd3 {[%clk 0:00:42.4]} 59... Be5 {[%clk
0:00:05.1]} 60. Bxe4+ {[%clk 0:00:41.7]} 60... Bxe4 {[%clk 0:00:06]} 61. Qd7+
{[%clk 0:00:41.4]} 61... Kg6 {[%clk 0:00:05.8]} 62. Qe8+ {[%clk 0:00:41.1]}
62... Kf5 {[%clk 0:00:05.5]} 63. Qd7+ {[%clk 0:00:40.5]} 63... Kf6 {[%clk
0:00:05.1]} 64. c6 {[%clk 0:00:40.6]} 64... g4 {[%clk 0:00:04.4]} 65. c7 {[%clk
0:00:38.7]} 65... g3+ {[%clk 0:00:03.3]} 66. Ke2 {[%clk 0:00:38.9]} 66... f3+
{[%clk 0:00:01.4]} 67. Nxf3 {[%clk 0:00:38.3]} 1-0